Cogmind - Beta 10.2 @@@ ROGUE MODE // 2020.11.24 @ 20:22:30 // Halloween2020/ForbiddenLore Player: TpFive3.5 Result: Destroyed by G-67 Veteran with Plasma Rifle Performance ------------- Evolutions (6) 3000 Regions Visited (11) 2200 Robots Destroyed (136) 680 Value Destroyed (5365) 5365 Prototype IDs (32) 640 Alien Tech Used (0) 0 Bonus (539) 539 TOTAL SCORE: 12424 Bonus ------- High Alert Combat Kills 239 Aligned with FarCom 300 Cogmind --------- Core Integrity 0/1150 Matter 80/300 Energy 8/100 System Corruption 22% Temperature Cool (0) Movement Walking (120) Location -4/Factory Parts ------- > --- POWER (2) -------- (None) > --- PROPULSION (4) --- Flexi-carbon Leg Flexi-carbon Leg Flexi-carbon Leg > --- UTILITY (8) ------ Advanced Visual Processing Unit Advanced Terrain Scan Processor Advanced Targeting Computer > --- WEAPON (5) ------- Tesla Rifle > --- INVENTORY (4) ---- Advanced Heat Sink Peak State ------------ > --- POWER ------------ Micro Fission Core Light Antimatter Reactor > --- PROPULSION ------- Armored Medium Treads Armored Medium Treads Advanced Medium Treads Advanced Medium Treads > --- UTILITY ---------- Medium Storage Unit High-capacity Storage Unit Inertial Stasis Machine Advanced Visual Processing Unit Advanced Terrain Scan Processor Targeting Computer Targeting Computer Improved Targeting Computer > --- WEAPON ----------- Heavy Laser Gauss Rifle Bore Cannon Enhanced Gauss Cannon Force Lance > --- INVENTORY -------- Light Angular Momentum Engine Light Angular Momentum Engine Light Antimatter Reactor Carbon-fiber Leg Carbon-fiber Leg Flexi-carbon Leg Advanced Heat Sink Structural Scanner Improved Sensor Array High-powered Shock Rifle Tesla Rifle Phase Gun Matter Neutralizer Autogun Railgun Enhanced Gauss Cannon [Rating: 93] Favorites ----------- Power Improved Ion Engine Engine Improved Ion Engine Power Core Fission Core Reactor Light Antimatter Reactor Propulsion Advanced Treads Treads Advanced Treads Leg Carbon-fiber Leg Utility Advanced Terrain Scan Processor Device Improved Terrain Scanner Storage Medium Storage Unit Processor Advanced Terrain Scan Processor Weapon Improved Assault Rifle Energy Gun Heavy Laser Energy Cannon Disruptor Cannon Ballistic Gun Improved Assault Rifle Ballistic Cannon Bore Cannon Launcher Grenade Launcher Special Weapon Mining Laser Piercing Weapon Force Lance Build | -11 -10 -9 -9 -9 -8 -8 -7 -6 -5 -5 -4 ------- Run | Scr Mat Mat Min Exi Min Mat Fac Fac Fac Ext Fac Slots Evolved 12 | . . 2 . . . 2 2 2 2 . 2 Power 1 | . . . . . . . 1 . . . . Propulsion 2 | . . . . . . . . 1 . . 1 Utility 6 | . . 2 . . . 1 1 . 1 . 1 Weapon 3 | . . . . . . 1 . 1 1 . . Parts Attached 165 | 8 13 13 6 1 1 6 12 8 13 35 49 Power 23 | 2 1 1 . 1 . . 3 1 2 7 5 Engine 12 | 2 1 1 . 1 . . 2 . . 3 2 Core 9 | . . . . . . . 1 1 2 4 1 Reactor 2 | . . . . . . . . . . . 2 Propulsion 36 | 2 1 2 2 . . . 2 1 3 7 16 Treads 19 | 2 . 2 2 . . . 2 1 3 1 6 Leg 17 | . 1 . . . . . . . . 6 10 Wheel . | . . . . . . . . . . . . Hover . | . . . . . . . . . . . . Flight . | . . . . . . . . . . . . Utility 36 | 2 6 6 . . . 1 3 . 2 6 10 Device 14 | 1 1 2 . . . 1 . . 1 2 6 Storage 8 | 1 5 1 . . . . . . . . 1 Processor 14 | . . 3 . . . . 3 . 1 4 3 Hackware . | . . . . . . . . . . . . Protection . | . . . . . . . . . . . . Artifact . | . . . . . . . . . . . . Weapon 70 | 2 5 4 4 . 1 5 4 6 6 15 18 Energy Gun 18 | 1 1 1 1 . . 2 . 1 1 4 6 Energy Cannon 19 | . . 2 . . . 1 3 3 2 6 2 Ballistic Gun 15 | 1 1 . 2 . . 2 . . 1 3 5 Ballistic Cannon 6 | . . . . . . . . . . 2 4 Launcher 9 | . 1 1 1 . 1 . 1 2 2 . . Special Weapon 2 | . 2 . . . . . . . . . . Impact Weapon . | . . . . . . . . . . . . Slashing Weapon . | . . . . . . . . . . . . Piercing Weapon 1 | . . . . . . . . . . . 1 Special Melee Weapon . | . . . . . . . . . . . . Unidentified Prototypes 1 | . . . . . . . . . . . 1 Parts Lost 71 | . 2 1 . . . . 3 3 1 24 37 Power 13 | . . . . . . . 1 1 . 6 5 Propulsion 15 | . 1 . . . . . . . 1 5 8 Utility 8 | . . . . . . . 1 . . 2 5 Weapon 35 | . 1 1 . . . . 1 2 . 11 19 Highest Loss Streak 29 | . 1 1 . . . . 2 1 1 7 29 Average Slot Usage (%) 96 | . 97 99 100 98 100 100 99 98 96 90 94 Engine 7 | . 14 11 11 9 11 9 13 6 2 1 . Core 3 | . . . . . . . 1 5 8 8 4 Treads 15 | . 21 21 22 22 22 18 15 20 17 5 10 Leg 3 | . 5 . . . . . . . . 10 8 Device 7 | . 3 8 11 11 11 18 7 6 5 5 5 Storage 16 | . 24 22 22 22 22 18 15 13 11 11 9 Processor 17 | . . 12 11 11 11 9 22 20 23 22 24 Energy Gun 4 | . 6 6 3 . . 8 7 5 7 4 4 Energy Cannon 3 | . . 2 3 . . 6 3 15 6 5 3 Ballistic Gun 8 | . 12 4 14 22 11 5 5 . 4 4 7 Ballistic Cannon 1 | . . . . . . . . . . 3 5 Launcher 3 | . 6 8 . . 11 6 5 3 4 . . Naked Turns . | . . . . . . . . . . . . Heaviest Build 133 | 14 22 56 54 53 54 61 66 73 96 133 95 Greatest Support 114 | 40 40 44 44 44 44 44 44 64 66 67 114 Greatest Overweight (x) 15 | . 1 1 1 1 1 1 1 1 1 5 15 Average Overweight (x) 1 | . . . 1 1 1 1 1 1 1 1 . Largest Inventory Capacity 16 | 6 16 16 16 16 16 16 16 16 16 16 16 Average Capacity 15 | 5 7 15 16 16 16 16 16 16 16 16 15 Most Carried 16 | 3 11 16 16 16 16 16 16 16 16 16 16 Average Carried 14 | 1 7 15 15 15 15 15 15 14 15 13 13 Final Capacity 16 | 6 10 16 16 16 16 16 16 16 16 16 4 Final Carried 16 | 3 10 15 16 16 16 16 16 16 16 14 1 Class Distribution -------------------- 41% | Mutant 31% | Skirmisher 11% | Scavenger-Skirmisher 9% | Scavenger-Gunner 4% | Scavenger-Assassin Dominant Class ---------------- Mutant | -10/Materials Mutant | -9/Materials Mutant | -9/Mines Mutant | -9/Exiles Skirmisher | -8/Mines Skirmisher | -8/Materials Skirmisher | -7/Factory Skirmisher | -6/Factory Skirmisher | -5/Factory Scavenger-Skirmisher | -5/Extension Scavenger-Gunner | -4/Factory Resources | -11 -10 -9 -9 -9 -8 -8 -7 -6 -5 -5 -4 ----------- Run | Scr Mat Mat Min Exi Min Mat Fac Fac Fac Ext Fac Matter Collected 2880 | 278 97 302 226 . 20 69 267 112 77 781 651 Remotely 39 | 39 . . . . . . . . . . . Salvage Created 5182 | 99 142 369 265 . . 265 541 94 77 1822 1508 Parts 262 | 2 24 23 29 . . 13 32 3 3 66 67 Haulers Intercepted 1 | . . 1 . . . . . . . . . Recyclers Shooed 7 | . . 2 . . . . 1 1 . 2 1 Parts Field Recycled . | . . . . . . . . . . . . Retrieved Matter . | . . . . . . . . . . . . Parts Self-Destructed . | . . . . . . . . . . . . Prevented . | . . . . . . . . . . . . Kills | -11 -10 -9 -9 -9 -8 -8 -7 -6 -5 -5 -4 ------- Run | Scr Mat Mat Min Exi Min Mat Fac Fac Fac Ext Fac Combat Hostiles Destroyed 104 | . 9 9 10 . . 3 12 2 1 34 24 Melee 7 | . . . . . . . . . . . 7 Guns 35 | . 4 1 6 . . . 3 . 1 12 8 Cannons 35 | . 2 1 . . . 2 1 1 . 21 7 AOE 23 | . 3 6 4 . . . 7 . . 1 2 Classes Destroyed 13 | 1 4 4 . . . . 3 . . 1 . Worker 11 | . 1 1 2 . . . 4 . . 1 2 Builder 4 | . . . . . . . 1 . . 2 1 Hauler 1 | . . 1 . . . . . . . . . Recycler 4 | 1 . 1 1 . . . . . . 1 . Operator 2 | . . 2 . . . . . . . . . Watcher 10 | . 3 1 . . . 3 1 . . 2 . Swarmer 28 | . 6 5 8 . . . 4 . . . 5 Grunt 41 | . 3 1 . . . 2 5 . . 17 13 Brawler 2 | . . 1 . . . . . . . 1 . Sentry 13 | . . 2 2 . . 1 1 . 1 6 . Hunter 5 | . . . . . . . 1 . . 4 . Programmer 9 | . . . . . . . 1 2 . . 6 Behemoth 2 | . . . . . . . . . . 2 . Guerrilla 4 | . . . . . . . . . . 4 . Best Kill Streak 13 | 1 4 5 6 . . 2 7 1 1 13 6 Combat Bots Only 13 | . 3 4 6 . . 2 4 1 1 13 5 Max Kills in Single Turn 4 | 1 3 2 2 . . 1 4 1 1 1 3 Gunslinging 1 | . . . 1 . . . . . . . . Exploded 4 | . 3 2 2 . . . 4 . . 1 2 Melee 1 | . . . . . . . . . . . 1 Uniques/NPCs Destroyed . | . . . . . . . . . . . . Combat | -11 -10 -9 -9 -9 -8 -8 -7 -6 -5 -5 -4 -------- Run | Scr Mat Mat Min Exi Min Mat Fac Fac Fac Ext Fac Damage Taken 12480 | . 508 483 333 . . 185 654 216 424 3646 6031 Core 1868 | . 144 105 29 . . 47 92 20 55 213 1163 Absorbed by Shields 60 | . 60 . . . . . . . . . . Core Remaining (%) 79 | 100 42 . . . 66 91 86 97 . 73 . Volleys Fired 262 | 2 22 25 18 . . 15 33 12 5 84 46 Largest 4 | 1 2 2 2 . . 3 3 4 3 4 4 Hottest 254 | 40 200 112 96 . . 136 136 254 188 237 225 Shots Fired 589 | 2 35 31 25 . . 31 62 22 9 244 128 Gun 304 | 2 19 7 20 . . 18 38 6 4 111 79 Cannon 230 | . . 9 1 . . 13 14 12 2 130 49 Launcher 45 | . 6 15 4 . . . 10 4 3 3 . Special 10 | . 10 . . . . . . . . . . Kinetic 299 | . 11 . 19 . . 3 20 . 2 172 72 Thermal 105 | . 10 . . . . 2 7 11 2 34 39 Explosive 45 | . 6 15 4 . . . 10 4 3 3 . Electromagnetic 140 | 2 8 16 2 . . 26 25 7 2 35 17 Robot Hit Streak 28 | 2 7 6 9 . . 12 15 10 9 20 28 Robot Miss Streak 5 | . 4 3 2 . . 2 2 1 . 5 2 Penetration Max 1 | . . . . . . . . . . 1 1 Secondary Targets 3 | . 1 . 2 . . . . . . . . Max Gunslinging Chain 1 | . 1 . 1 . . . . . . . . Autonomous 81 | . . . . . . . . . . 81 . Shots Hit Robots 443 | 2 16 20 18 . . 23 44 14 6 183 117 Core Hits 241 | 1 15 24 14 . . 9 35 2 4 71 66 Critical Hits 31 | . . . 2 . . . . 2 . 18 9 Critical Kills 9 | . . . 2 . . . . . . 3 4 Critical Parts Destroyed 19 | . . . . . . . . 2 . 12 5 Melee Attacks 29 | . . . . . . . . . . . 29 Impact . | . . . . . . . . . . . . Slashing . | . . . . . . . . . . . . Piercing 29 | . . . . . . . . . . . 29 Sneak Attacks . | . . . . . . . . . . . . Combat Hostiles . | . . . . . . . . . . . . Follow-up Attacks . | . . . . . . . . . . . . Damage Inflicted 16498 | 30 571 971 561 . . 541 1483 229 202 8409 3501 Guns 4976 | 30 98 59 202 . . 233 529 12 89 2346 1378 Cannons 7415 | . . 174 22 . . 308 210 170 52 5509 970 Explosions 2894 | . 271 730 334 . . . 733 42 61 477 246 Melee 867 | . . . . . . . . . . . 867 Ramming 154 | . 10 8 3 . . . 11 5 . 77 40 Kinetic 8752 | . 24 . 202 . . 15 232 . 41 6766 1472 Thermal 1998 | . 192 . . . . 16 257 208 48 680 597 Explosive 2452 | . 271 730 334 . . . 579 . 61 477 . Electromagnetic 2275 | 30 74 233 22 . . 510 404 16 52 409 525 Impact . | . . . . . . . . . . . . Slashing . | . . . . . . . . . . . . Piercing 867 | . . . . . . . . . . . 867 Highest Corruption 22 | . . . . . . 1 . 4 2 15 22 Average Corruption 7 | . . . . . . 1 . 3 1 7 9 Corruption Purged . | . . . . . . . . . . . . Effects 158 | . . . . . . 1 . 6 1 71 79 Message Errors 28 | . . . . . . . . 2 1 15 10 Matter Fused 30 | . . . . . . . . 1 . 19 10 Heat Flow Errors 17 | . . . . . . . . 1 . 6 10 Energy Discharges 12 | . . . . . . . . 2 . 2 8 Data Loss (minor) 17 | . . . . . . . . . . 7 10 Data Loss (major) 4 | . . . . . . . . . . 3 1 Misfires 5 | . . . . . . . . . . 1 4 Alerts 1 | . . . . . . . . . . . 1 Misdirections 14 | . . . . . . . . . . 6 8 Targeting Errors 25 | . . . . . . 1 . . . 10 14 Weapon Failures 5 | . . . . . . . . . . 2 3 Overload Shots . | . . . . . . . . . . . . Overflow Damage 506 | . 5 33 52 . . 26 33 31 . 260 66 Projectiles 302 | . . . . . . 26 . 11 . 260 5 Explosions 177 | . 5 33 52 . . . 33 20 . . 34 Melee 27 | . . . . . . . . . . . 27 Knockbacks 21 | . . . . . . . . . . 14 7 Impact 1 | . . . . . . . . . . 1 . Kinetic 17 | . . . . . . . . . . 11 6 Secondary 3 | . . . . . . . . . . 2 1 Self-Inflicted Damage 850 | . 24 70 65 . . . 99 50 . 41 501 Shots 20 | . 1 3 3 . . . 3 2 . 1 7 Rammed 18 | 1 1 4 1 . . . 2 2 . 6 1 Targets Rammed 19 | 1 1 4 1 . . . 2 2 . 6 2 Kicked 1 | . . . . . . . . . . . 1 Crushed . | . . . . . . . . . . . . Highest Temperature 416 | . 188 168 30 . . 216 325 308 237 375 416 Average Temperature 115 | . 85 54 11 . . 84 112 142 117 108 148 Received Heat Transfer 2099 | . 164 87 36 . . 81 180 . 18 609 924 Effects 13 | . . . . . . . 3 . . 4 6 Shutdowns 4 | . . . . . . . . . . 2 2 Interference 8 | . . . . . . . 3 . . 2 3 Damage (minor) 1 | . . . . . . . . . . . 1 Siege Activations . | . . . . . . . . . . . . Robots Corrupted 3 | . . 1 . . . 1 1 . . . . Combat Hostiles 3 | . . 1 . . . 1 1 . . . . Parts Fried 13 | . . 1 . . . 7 4 . . 1 . Impact Corruptions 1 | . . . . . . . . . . . 1 Robots Melted 1 | . . . . . . . . 1 . . . Combat Hostiles 1 | . . . . . . . . 1 . . . Parts Melted 9 | . . . . . . . . 5 . 1 3 Heat Transferred 3300 | . 400 . . . . 37 385 298 74 903 1203 Parts Sabotaged . | . . . . . . . . . . . . Parts Stolen . | . . . . . . . . . . . . Parts Stripped . | . . . . . . . . . . . . Power Chain Reactions 2 | . . . . . . . 2 . . . . Missiles Intercepted . | . . . . . . . . . . . . Alert | -11 -10 -9 -9 -9 -8 -8 -7 -6 -5 -5 -4 ------- Run | Scr Mat Mat Min Exi Min Mat Fac Fac Fac Ext Fac Peak Influence 553 | 5 314 322 348 . . 164 169 212 113 553 526 Initial 184 | . 3 61 83 . . . . 67 5 1 184 Average 173 | 1 133 167 274 . . 63 60 110 24 294 265 Maximum Alert Level 2 | . 1 1 1 . . . . 1 . 2 2 Low Security (%) 63 | 100 78 80 34 . 100 100 100 82 100 35 21 Level 1 26 | . 21 19 65 . . . . 17 . 22 71 Level 2 10 | . . . . . . . . . . 41 7 Level 3 . | . . . . . . . . . . . . Level 4 . | . . . . . . . . . . . . Level 5 . | . . . . . . . . . . . . High Security . | . . . . . . . . . . . . Max Security . | . . . . . . . . . . . . Squads Dispatched 22 | . 1 1 . . . 1 2 5 . 4 8 Investigation 4 | . . 1 . . . . . . . 1 2 Extermination 6 | . . . . . . . 1 1 . . 4 Reinforcement 8 | . 1 . . . . 1 1 1 . 3 1 Assault . | . . . . . . . . . . . . Garrison 4 | . . . . . . . . 3 . . 1 Intercept . | . . . . . . . . . . . . Construction Impeded 5 | . . . . . . . . 1 . 3 1 Haulers Reinforced . | . . . . . . . . . . . . Stealth | -11 -10 -9 -9 -9 -8 -8 -7 -6 -5 -5 -4 --------- Run | Scr Mat Mat Min Exi Min Mat Fac Fac Fac Ext Fac Distress Signals 7 | . 2 . . . . . . . . 3 2 Communications Jammed . | . . . . . . . . . . . . Distress Signals . | . . . . . . . . . . . . Times Spotted 163 | . 17 17 10 . . 9 17 2 2 45 44 Peak Tracking Total 14 | . 6 4 4 . . 3 4 2 1 9 14 Tactical Retreats 13 | . 1 . . . . 1 . . . 9 2 Traps | -11 -10 -9 -9 -9 -8 -8 -7 -6 -5 -5 -4 ------- Run | Scr Mat Mat Min Exi Min Mat Fac Fac Fac Ext Fac Traps Triggered 8 | . . 1 . . . 1 . . 3 1 2 Indirectly . | . . . . . . . . . . . . Trap Hack Attempts . | . . . . . . . . . . . . Triggered . | . . . . . . . . . . . . Disarmed . | . . . . . . . . . . . . Reprogrammed . | . . . . . . . . . . . . Reused . | . . . . . . . . . . . . Traps Extracted . | . . . . . . . . . . . . Installed . | . . . . . . . . . . . . Triggered 1 | . 1 . . . . . . . . . . Machines | -11 -10 -9 -9 -9 -8 -8 -7 -6 -5 -5 -4 ---------- Run | Scr Mat Mat Min Exi Min Mat Fac Fac Fac Ext Fac Machines Disabled 26 | . . 5 1 . . . . 4 . 1 15 Max in Single Turn 4 | . . 2 1 . . . . 3 . 1 4 Machines Sabotaged . | . . . . . . . . . . . . Garrisons Compromised . | . . . . . . . . . . . . Overloaded Fab Kills . | . . . . . . . . . . . . Fab Network Shutdowns . | . . . . . . . . . . . . Hacking | -11 -10 -9 -9 -9 -8 -8 -7 -6 -5 -5 -4 --------- Run | Scr Mat Mat Min Exi Min Mat Fac Fac Fac Ext Fac Machines Accessed 35 | . 4 3 . 5 . 2 6 . 2 6 7 Terminals 28 | . 4 2 . . . 2 6 . 1 6 7 Fabricators . | . . . . . . . . . . . . Repair Stations . | . . . . . . . . . . . . Recycling Units . | . . . . . . . . . . . . Scanalyzers 2 | . . 1 . . . . . . 1 . . Garrison Access . | . . . . . . . . . . . . Total Hacks 125 | . 10 8 . 50 . 4 19 . 3 12 19 Successful 92 | . 7 6 . 50 . 2 8 . 2 5 12 Failed 33 | . 3 2 . . . 2 11 . 1 7 7 Catastrophic 8 | . 1 . . . . . 2 . . 1 4 Database Lockouts . | . . . . . . . . . . . . Manual 6 | . . . . 6 . . . . . . . Terminals 70 | . 10 5 . . . 4 19 . 1 12 19 Fabricators . | . . . . . . . . . . . . Repair Stations . | . . . . . . . . . . . . Recycling Units . | . . . . . . . . . . . . Scanalyzers 5 | . . 3 . . . . . . 2 . . Garrison Access . | . . . . . . . . . . . . Terminal Hacks 88 | . 7 3 . 50 . 2 8 . 1 5 12 Record 60 | . . . . 49 . 1 2 . . 4 4 Robot Analysis 3 | . 1 1 . . . . . . . . 1 Prototype ID Bank 3 | . 1 1 . . . . 1 . . . . Open Door 2 | . . . . . . . . . 1 1 . Branch Access Points 2 | . 1 . . . . . . . . . 1 Emergency Access Points 4 | . . . . . . . 2 . . . 2 Alert Level 1 | . . . . . . . 1 . . . . Unreport Threat 1 | . . . . . . . 1 . . . . Locate Traps 6 | . 3 1 . . . . . . . . 2 Dispatch Records 2 | . . . . . . . . . . . 2 Maintenance Status 1 | . . . . . . 1 . . . . . Security Status 1 | . . . . . . . 1 . . . . Zone Layout 1 | . 1 . . . . . . . . . . EX-Prototype ID Bank 1 | . . . . 1 . . . . . . . Fabricator Hacks . | . . . . . . . . . . . . Repair Station Hacks . | . . . . . . . . . . . . Recycling Unit Hacks . | . . . . . . . . . . . . Scanalyzer 4 | . . 3 . . . . . . 1 . . Insert Component 3 | . . 2 . . . . . . 1 . . Analyze 1 | . . 1 . . . . . . . . . Garrison Access Hacks . | . . . . . . . . . . . . Unauthorized Hacks . | . . . . . . . . . . . . Terminals . | . . . . . . . . . . . . Fabricators . | . . . . . . . . . . . . Repair Stations . | . . . . . . . . . . . . Recycling Units . | . . . . . . . . . . . . Scanalyzers . | . . . . . . . . . . . . Garrison Access . | . . . . . . . . . . . . Data Cores Recovered . | . . . . . . . . . . . . Used . | . . . . . . . . . . . . Hacking Detections 26 | . 4 3 . . . 2 6 . 1 5 5 Full Trace Events 3 | . . 1 . . . . . . . 1 1 Feedback Events . | . . . . . . . . . . . . Feedback Blocked . | . . . . . . . . . . . . Robot Schematics Acquired . | . . . . . . . . . . . . Robots Built . | . . . . . . . . . . . . Matter . | . . . . . . . . . . . . Time . | . . . . . . . . . . . . Total Robot Build Rating . | . . . . . . . . . . . . Part Schematics Acquired 1 | . . 1 . . . . . . . . . Parts Built . | . . . . . . . . . . . . Matter . | . . . . . . . . . . . . Time . | . . . . . . . . . . . . Total Part Build Rating . | . . . . . . . . . . . . Parts Repaired . | . . . . . . . . . . . . Time . | . . . . . . . . . . . . Parts Recycled . | . . . . . . . . . . . . Recycled Matter . | . . . . . . . . . . . . Retrieved Matter . | . . . . . . . . . . . . Retrieved Components . | . . . . . . . . . . . . Parts Scanalyzed 2 | . . 1 . . . . . . 1 . . Part Schematics Acquired 1 | . . 1 . . . . . . . . . Parts Damaged . | . . . . . . . . . . . . Bothacking | -11 -10 -9 -9 -9 -8 -8 -7 -6 -5 -5 -4 ------------ Run | Scr Mat Mat Min Exi Min Mat Fac Fac Fac Ext Fac Used RIF Installer . | . . . . . . . . . . . . Robots Hacked . | . . . . . . . . . . . . Non-combat . | . . . . . . . . . . . . Combat . | . . . . . . . . . . . . Robot Hacks Applied . | . . . . . . . . . . . . Relay Couplers Released . | . . . . . . . . . . . . Robots Rewired . | . . . . . . . . . . . . Allies Hacked . | . . . . . . . . . . . . Hacks Repelled . | . . . . . . . . . . . . Allies | -11 -10 -9 -9 -9 -8 -8 -7 -6 -5 -5 -4 -------- Run | Scr Mat Mat Min Exi Min Mat Fac Fac Fac Ext Fac Total Allies 2 | . . . . . . . . . . 2 . Largest Group 2 | . . . . . . . . . . 2 . Highest-Rated Group 56 | . . . . . . . . . . 56 . Highest-Rated Ally 31 | . . . . . . . . . . 31 . Total Orders . | . . . . . . . . . . . . Ally Attacks 2 | . . . . . . . . . . 2 . Total Damage 169 | . . . . . . . . . . 169 . Kills . | . . . . . . . . . . . . Allies Corrupted 1 | . . . . . . . . . . 1 . Allies Melted . | . . . . . . . . . . . . Intel | -11 -10 -9 -9 -9 -8 -8 -7 -6 -5 -5 -4 ------- Run | Scr Mat Mat Min Exi Min Mat Fac Fac Fac Ext Fac Robot Analysis Total 3 | . 1 1 . . . . . . . . 1 Derelict Logs Recovered . | . . . . . . . . . . . . Drone Launches . | . . . . . . . . . . . . Drone Recoveries . | . . . . . . . . . . . . Exploration | -11 -10 -9 -9 -9 -8 -8 -7 -6 -5 -5 -4 ------------- Run | Scr Mat Mat Min Exi Min Mat Fac Fac Fac Ext Fac Turns Passed 9612 | 78 580 745 360 1488 524 444 1107 428 462 1784 1612 Spaces Moved 4821 | 40 259 384 182 898 316 227 529 216 243 784 743 Core 8 | 4 . . . . . . . . . . 4 Treads 3988 | 36 259 384 182 898 316 227 529 216 243 221 477 Legs 825 | . . . . . . . . . . 563 262 Wheels . | . . . . . . . . . . . . Hover . | . . . . . . . . . . . . Flight . | . . . . . . . . . . . . Fastest Speed 50 | 50 160 145 165 165 165 165 165 173 165 165 120 Average Speed 169 | 149 163 165 165 165 165 165 170 173 171 181 165 Slowest Speed 800 | 160 180 180 165 165 165 165 177 173 173 270 800 Overloaded Moves . | . . . . . . . . . . . . Propulsion Burnouts . | . . . . . . . . . . . . Robots Hopped . | . . . . . . . . . . . . Cave-ins Triggered 1 | . . . . . . . . . . 1 . Exploration Rate (%) 38 | 4 46 39 37 94 80 30 23 9 6 66 26 Regions Visited 11 Branch Regions 4 Pre-discovered Areas 1 | . . . . 1 . . . . . . . Known Exits Taken 8 | . . 1 1 1 1 1 1 1 1 . . Unknown Exits Taken 3 | 1 1 . . . . . . . . 1 . Scrap Searched 2 | . . . . . 2 . . . . . . Spaces Dug 39 | . . . . . . . 5 29 5 . . Terrain Destroyed 449 | . 45 97 18 . . . 37 64 43 104 41 Melee . | . . . . . . . . . . . . Projectile 45 | . 1 . . . . . . . 1 38 5 AOE 404 | . 44 97 18 . . . 37 64 42 66 36 Terrain Rammed . | . . . . . . . . . . . . Walls Destroyed . | . . . . . . . . . . . . Machines Disabled . | . . . . . . . . . . . . Actions | -11 -10 -9 -9 -9 -8 -8 -7 -6 -5 -5 -4 --------- Run | Scr Mat Mat Min Exi Min Mat Fac Fac Fac Ext Fac Total 5744 | 52 361 470 221 907 320 266 673 248 282 977 967 Wait 268 | . 40 16 . . . 12 85 5 6 37 67 Move 4810 | 39 258 383 181 897 315 226 528 215 242 783 743 Hop . | . . . . . . . . . . . . Pick Up 105 | 2 15 16 8 3 2 4 8 5 6 22 14 Fast Attach 43 | 7 3 2 . 1 . 1 1 1 3 10 14 Attach 65 | . 2 3 . . . 2 4 4 6 21 23 Detach 7 | . 1 . . . . . . . 2 1 3 Swap 57 | 1 8 8 6 . 1 3 7 3 4 4 12 Drop 79 | . 11 13 7 6 2 3 5 1 8 9 14 Fire 262 | 2 22 25 18 . . 15 33 12 5 84 46 Melee 29 | . . . . . . . . . . . 29 Ram . | . . . . . . . . . . . . Kick 3 | . . . . . . . . . . 1 2 Crush 16 | 1 1 4 1 . . . 2 2 . 5 . Escape Stasis . | . . . . . . . . . . . . Rewire . | . . . . . . . . . . . . Trap . | . . . . . . . . . . . . Miscellaneous . | . . . . . . . . . . . . Route ------- -11/Scrapyard -10/Materials (discovered 2 exits: *Mat / *Min) -9/Materials -9/Mines -9/Exiles (discovered 2 exits: *Min x2) -8/Mines (discovered 2 exits: *Mat x2) -8/Materials -7/Factory (discovered 2 exits: *Fac / *Low) -6/Factory -5/Factory -5/Extension (discovered 2 exits: *Fac / [*Cet]) -4/Factory (discovered 3 exits: Upp x2 / Arm) History --------- Turn | Location | Event 13 | -11/Scrapyard | Discovered new exit (range 16) 79 | -11/Scrapyard | Entered Materials 250 | -10/Materials | Discovered new exit (range 14) 312 | -10/Materials | Build established: Mutant 403 | -10/Materials | Core integrity fell below 50% 553 | -10/Materials | Identified exit to Mines 568 | -10/Materials | Discovered new exit (range 14) 659 | -10/Materials | Entered another Materials area 659 | -9/Materials | Evolved 2 slots: Utility x2 1361 | -9/Materials | Discovered new exit (range 6) 1367 | -9/Materials | Identified exit to Mines 1404 | -9/Materials | Entered Mines 1419 | -9/Mines | Met a Derelict bent on vengeance 1742 | -9/Mines | Discovered new exit (range 14) 1754 | -9/Mines | Deemed a non-threat by the Exiles lab entrance 1761 | -9/Mines | Identified exit to Exiles 1764 | -9/Mines | Entered Exiles 1803 | -9/Exiles | Discovered new exit (range 14) 1832 | -9/Exiles | Identified exit to Mines 1867 | -9/Exiles | Met 8R-AWN 1890 | -9/Exiles | Met EX-HEX 2220 | -9/Exiles | Met EX-DEC 2282 | -9/Exiles | Visited The Gauntlet 2504 | -9/Exiles | Learned location of Zion (-7) 2614 | -9/Exiles | Discovered exit to Mines (range 14) 2723 | -9/Exiles | Met EX-BIN 2748 | -9/Exiles | Aligned with FarCom system 2750 | -9/Exiles | Given EX-Vault access code 2847 | -9/Exiles | Opened EX-Vault 2862 | -9/Exiles | Found AWS/Autocannon 2897 | -9/Exiles | Warned to stay clear of 0b10 Research branches 3252 | -9/Exiles | Left Exiles lab with AWS/Autocannon 3252 | -9/Exiles | Entered Mines 3539 | -8/Mines | Build established: Skirmisher 3573 | -8/Mines | Discovered new exit (range 8) 3596 | -8/Mines | Identified exit to Materials 3621 | -8/Mines | Discovered exit to Materials (range 7) 3776 | -8/Mines | Entered Materials 3776 | -8/Materials | Evolved 2 slots: Utility x1, Weapon x1 4195 | -8/Materials | Discovered new exit (range 16) 4218 | -8/Materials | Identified exit to Factory 4220 | -8/Materials | Entered Factory 4220 | -7/Factory | Evolved 2 slots: Power x1, Utility x1 4485 | -7/Factory | Discovered new exit (range 14) 4515 | -7/Factory | Identified exit to Lower Caves 4606 | -7/Factory | Build established: Mutant 4947 | -7/Factory | Build established: Skirmisher 5300 | -7/Factory | Discovered new exit (range 16) 5325 | -7/Factory | Identified exit to Factory 5327 | -7/Factory | Entered another Factory area 5327 | -6/Factory | Evolved 2 slots: Propulsion x1, Weapon x1 5481 | -6/Factory | Garrison activated, responded to threat 5731 | -6/Factory | Discovered new exit (range 13) 5749 | -6/Factory | Identified exit to Factory 5755 | -6/Factory | Entered another Factory area 5755 | -5/Factory | Evolved 2 slots: Utility x1, Weapon x1 6196 | -5/Factory | Discovered new exit (range 13) 6215 | -5/Factory | Identified exit to Extension 6217 | -5/Factory | Entered Extension 6343 | -5/Extension | Rescued a captive Derelict 6344 | -5/Extension | Rescued a captive Derelict 6653 | -5/Extension | Spotted B-75 Beast 6742 | -5/Extension | Disrupted transfer network 6756 | -5/Extension | Lost 6 parts (2p2n1u1w) 6913 | -5/Extension | Lost 7 parts (2p1n4w) 6991 | -5/Extension | Destroyed 13 combat bots 7203 | -5/Extension | Build established: Scavenger-Skirmisher 7513 | -5/Extension | Destroyed B-75 Beast 7524 | -5/Extension | Spotted B-75 Beast 7530 | -5/Extension | Crushed by falling debris 7530 | -5/Extension | System corruption reached 10% 7546 | -5/Extension | Destroyed B-75 Beast 7561 | -5/Extension | Lost 5 parts (2p1u2w) 7910 | -5/Extension | Discovered new exit (range 20) 7912 | -5/Extension | Discovered new exit (range 19) 8001 | -5/Extension | Entered Factory 8001 | -4/Factory | Evolved 2 slots: Propulsion x1, Utility x1 8301 | -4/Factory | Build established: Scavenger-Gunner 8531 | -4/Factory | Identified exit to Upper Caves 8531 | -4/Factory | Identified exit to Armory 8598 | -4/Factory | Spotted B-86 Titan 8841 | -4/Factory | System corruption reached 10% 9339 | -4/Factory | Build established: Scavenger-Assassin 9435 | -4/Factory | Garrison activated, responded to threat 9565 | -4/Factory | Core integrity fell below 50% 9589 | -4/Factory | Core integrity fell below 20% 9613 | -4/Factory | Destroyed by G-67 Veteran with Plasma Rifle Last Messages --------------- 09582_ K-01 Serf collects debris. 09586_ U-05 Engineer lays Concrete. 09586_ K-01 Serf collects debris. 09589_ Electrolaser destroyed. 09589_ R-10 Processor collects Wheel. 09589_ K-01 Serf collects debris. 09595_ System corrupted: Component data lost. 09596_ K-01 Serf collects debris. 09597_ Dropped Hcp. Storage Unit. 09598_ P-70 Sage resets G-73 Enforcer, system corruption cleaned. 09599_ Med. Storage Unit destroyed. 09600_ K-01 Serf collects debris. 09603_ P-70 Sage resets G-73 Enforcer, system corruption cleaned. 09603_ K-01 Serf collects debris. 09604_ Acquired Flexi-carbon Leg. 09605_ K-01 Serf collects debris. 09607_ Acquired Flexi-carbon Leg. 09608_ K-01 Serf collects debris. 09612_ Acquired Flexi-carbon Leg. 09612_ K-01 Serf collects debris. Map ----- +----------------------------------------------------+ | ?????????????????????????????????????????????????? | | ?????????????????????????????????????????????????? | | ?????????????????????????????????????????????????? | | ?????????????????????????????????? ???????????? | | ???????????????##############????? #?????????? | | ???????????????# #????? #?????????? | | ???????????????# #????? #?????????? | | ???????????????# #????? #?????????? | | ?????? ???????## ##???? #?????????? | | ?????? ???????#" "#???? #?????????? | | ?????? #####??#" "#???? #?????????? | | ?????# #??# "#???? #??"??????? | | ?????# #??## "#???# #?""??????? | | ?????+ #??## "#???# # "???????? | | ?????# #??#" ##???# + ????????? | | ?????# #??#" #????# #?????????? | | ?????# #??## #????# #?????????? | | ?????# ###########+########### ########### | | ?????# | | ?????# ! ^%% | | ?????# !!%* % ! %%" | | ?????# %!%!=* %=! %"" | | ?????# g Y%[!!!% *!%* %%%%% " | | ?????# #############g##########|% %""" " | | ###### #?????# k!gpg ##?????#%=%% " | | #?????# %k==%@#??????#=w%%% """ " | | #?????# !=*%![ #??????# *%%% """ " | | #?????# %[[k! #??????# """ """ " | | ### #### #?????# """ #??????# %"" ????? | | #?# #??# ####### """"""" #??????# ????? | | ### ##?# p + """"""" #??????# """ """ ???? | | ## #?########## """"""" #??????# """ """ #??? | | ## !#??????????###########??????# """ """ #??? | | ## #???????????????????????????? """?"??? #??? | | ###+############?????????????????? ???????? #??? | | + #?????????????????? "????????????? | | # #?????????????????? "??p?????????? | | # #?????????????????? "????????????? | | # #?????????????????? ?p??????????? | | # #?????????????????? ????????????? | | # #?????????????????? ?????????????? | | ################?????????????????? ?????????????? | | ###??????????????????????????????????????????????? | | #??????????????????????????????????????????????? | | #??????????????????????????????????????????????? | | #??????????????????????????????????????????????? | | #??????????????????????????????????????????????? | | #??????????????????????????????????????????????? | | #??????????????????????????????????????????????? | | !#??????????????????????????????????????????????? | +----------------------------------------------------+ Best States ------------- Heat Dissipation 70 Energy Generation 34 Energy Capacity 530 Matter Stores 300 Matter Capacity 300 Sight Range 20 Robot Scan Range 13 Terrain Scan Range 16 Terrain Scan Density 610 Evasion (%) 50 Targeting Accuracy 16 Recoil Reduction 4 Item Schematics ----------------- Med. Storage Unit | -9/Materials | Scanalyzed Robot Schematics ------------------ None Fabricated ------------ Nothing Alien Tech Used ----------------- None Achievements -------------- None Challenges ------------ None Game ------ Seed EtherialCombatInjector Manual? 0 Play Time 02:16:22 Cumulative 20.0 hours Start 2020.11.24 @ 17:08:06 End 2020.11.24 @ 20:22:30 Sessions 3 Manual Loads 0 Difficulty Rogue Special Mode Halloween2020/ForbiddenLore Game No. 15 Rogue 15 Adventurer 0 Explorer 0 Win Type - Total 0 Types 0/0/0/0/0/0/0/0/0 Lore% 24 Gallery% 21 Achievement% 12 Wizard Run 0 Options --------- ASCII 0 Keyboard 0 Movement Mouse Keybinds 0 Fullscreen 1 Font 18/SmallcapsGlow Map View 76x50 Tactical HUD 1 Map Filters NONE Filters NONE Steam 1 RUN: def1955f-7ede-4a59-bc19-af41c6ce03f8